bitfinex-derivatives/quotes_BTCF0:USTF0_20250905
["timestamp","ask_amount","ask_price","bid_price","bid_amount"]
[1757095631671,1.23906534,110860.0,110850.0,0.84479403]
[1757095631872,1.23906534,110860.0,110850.0,0.38307]
[1757095632170,0.40570534,110860.0,110850.0,0.38307]
[1757095632365,1.11630534,110860.0,110850.0,0.38307]
[1757095632564,1.11630534,110860.0,110850.0,0.84479403]
[1757095632764,0.40570534,110860.0,110850.0,0.84479403]
[1757095633171,1.04997,110860.0,110850.0,0.84479403]
[1757095633371,1.19045,110860.0,110850.0,0.84479403]
[1757095633669,0.34326,110860.0,110850.0,0.84479403]
[1757095633869,0.34626,110860.0,110850.0,0.84479403]
[1757095634059,0.92709593,110860.0,110850.0,0.84479403]
[1757095634264,0.34926,110860.0,110850.0,0.84479403]
[1757095634467,0.36301,110860.0,110850.0,0.84479403]
[1757095634659,0.34926,110860.0,110850.0,0.38307]
[1757095634869,0.88453,110860.0,110850.0,0.38307]
[1757095635068,1.19841,110860.0,110850.0,0.84479403]
[1757095635265,1.44841,110860.0,110850.0,0.3608]
[1757095635569,1.44841,110860.0,110850.0,0.38331]
[1757095635570,1.44897,110860.0,110850.0,0.38331]
[1757095635772,0.61301,110860.0,110850.0,0.38331]
[1757095635971,1.20461,110860.0,110850.0,0.84503403]
[1757095636576,0.36301,110860.0,110850.0,0.84503403]
[1757095636773,1.20569,110860.0,110850.0,0.84503403]
[1757095636967,0.36301,110860.0,110850.0,0.38331]
[1757095637168,1.20569,110860.0,110850.0,0.84503403]
[1757095637369,0.36301,110860.0,110850.0,0.84503403]
[1757095637673,1.20577,110860.0,110850.0,0.84503403]
[1757095638968,0.36301,110860.0,110850.0,0.93524063]
[1757095639271,0.45966,110880.0,110870.0,0.02888]
[1757095639470,0.50192069,110880.0,110870.0,1.21220403]
[1757095639772,0.51488069,110880.0,110870.0,1.20583403]
[1757095640774,0.05532069,110880.0,110870.0,1.20583403]
[1757095641075,0.88680069,110880.0,110870.0,1.21859403]
[1757095641269,0.90276069,110880.0,110870.0,1.20583403]
[1757095641465,0.90276069,110880.0,110870.0,1.21859403]
[1757095641466,0.88980069,110880.0,110870.0,1.21859403]
[1757095641668,0.90276069,110880.0,110870.0,1.20583403]
[1757095642467,0.90276069,110880.0,110870.0,1.27791124]
[1757095642673,0.90276069,110880.0,110870.0,1.29067124]
[1757095642867,0.90276069,110880.0,110870.0,0.81618721]
[1757095643068,0.90276069,110880.0,110870.0,1.27791124]
[1757095643264,0.02377069,110880.0,110870.0,1.38086154]
[1757095643461,0.81273069,110880.0,110870.0,1.29067124]
[1757095643665,0.81273069,110880.0,110870.0,1.38086154]
[1757095644567,0.81273069,110880.0,110870.0,1.38978468]
[1757095644865,0.81273069,110880.0,110870.0,0.92806065]
[1757095645069,0.02377069,110880.0,110870.0,1.38978468]
[1757095645271,0.87269069,110880.0,110870.0,1.29959438]
[1757095645467,0.87269069,110880.0,110870.0,1.38978468]
[1757095646168,0.02377069,110880.0,110870.0,1.39178468]
[1757095646376,0.87049069,110880.0,110870.0,1.30159438]
[1757095646566,0.89208069,110880.0,110870.0,1.30559438]
[1757095647175,0.87069069,110880.0,110870.0,1.39578468]
[1757095647377,0.87057069,110880.0,110870.0,1.39578468]
[1757095647566,0.87057069,110880.0,110870.0,1.30559438]
[1757095647567,0.02077069,110880.0,110870.0,1.30559438]
[1757095647876,0.90512069,110880.0,110870.0,0.82218721]
[1757095648176,1.15512069,110880.0,110870.0,0.82218721]
[1757095649465,1.15512069,110880.0,110870.0,0.81918721]
[1757095649671,1.15512069,110880.0,110870.0,1.28291124]
[1757095650676,1.15512069,110880.0,110870.0,1.28191124]
[1757095650968,1.15512069,110880.0,110870.0,0.82018721]
[1757095651171,1.15512069,110880.0,110870.0,0.79767721]
[1757095651371,1.15512069,110880.0,110870.0,0.07607721]
[1757095651576,1.15512069,110880.0,110870.0,0.09858721]
[1757095651770,1.15512069,110880.0,110870.0,0.56031124]
[1757095651970,1.15512069,110880.0,110870.0,0.09858721]
[1757095652370,1.15512069,110880.0,110870.0,0.56031124]
[1757095652767,1.15512069,110880.0,110870.0,0.09858721]
[1757095653478,1.15512069,110880.0,110870.0,0.07607721]
[1757095654279,1.61684472,110880.0,110870.0,0.004]
[1757095654472,1.97764472,110880.0,110870.0,0.004]
[1757095654869,1.51592069,110880.0,110870.0,0.004]
[1757095655079,1.97764472,110880.0,110870.0,0.004]
[1757095655477,1.97764472,110880.0,110870.0,0.002]
[1757095655880,1.97764472,110880.0,110870.0,0.001]
[1757095656578,0.05532069,110880.0,110870.0,0.48523403]
[1757095656775,0.90616069,110880.0,110870.0,0.84503403]
[1757095656974,0.90716069,110880.0,110870.0,0.84503403]
[1757095657780,0.90716069,110880.0,110870.0,0.38331]
[1757095657980,0.90716069,110880.0,110870.0,0.3608]
[1757095658179,0.01296,110870.0,110860.0,0.3608]
[1757095658383,0.03455,110870.0,110860.0,0.84503403]
[1757095658680,0.05532069,110870.0,110860.0,0.38331]
[1757095658882,0.90696069,110870.0,110860.0,0.38331]
[1757095659082,0.90696069,110870.0,110860.0,0.84503403]
[1757095659283,0.05532069,110870.0,110860.0,0.84503403]
[1757095659475,0.90680069,110870.0,110860.0,0.84503403]
[1757095659782,0.90680069,110870.0,110860.0,0.84903403]
[1757095660379,0.90716069,110870.0,110860.0,0.84903403]
[1757095660581,0.90716069,110870.0,110860.0,0.85103403]
[1757095661782,0.90716069,110870.0,110860.0,0.38931]
[1757095661974,0.90716069,110870.0,110860.0,0.85103403]
[1757095662179,0.90716069,110870.0,110860.0,0.3668]
[1757095662380,0.90716069,110870.0,110860.0,0.38531]
[1757095662581,0.90716069,110870.0,110860.0,0.38931]
[1757095663387,0.90716069,110870.0,110860.0,0.3668]
[1757095663588,0.90716069,110870.0,110860.0,0.38931]
[1757095663789,0.90716069,110870.0,110860.0,0.38831]
[1757095663988,0.90716069,110870.0,110860.0,0.85003403]
[1757095664386,0.90716069,110870.0,110860.0,0.84903403]
[1757095664790,0.05532069,110870.0,110860.0,0.93923243]
[1757095664984,0.70216069,110870.0,110860.0,0.93923243]
[1757095665184,0.02077069,110870.0,110860.0,1.20199243]
[1757095665385,0.02095055,110880.0,110870.0,0.1197103]
[1757095665685,0.22693055,110880.0,110870.0,0.4805103]
[1757095665884,0.22693055,110880.0,110870.0,0.94223433]
[1757095666490,0.24821055,110880.0,110870.0,0.4815103]
[1757095666687,0.24821055,110880.0,110870.0,0.94323433]
[1757095667488,0.02085055,110880.0,110870.0,0.93981385]
[1757095667693,0.37537055,110880.0,110870.0,1.18981385]
[1757095667885,0.37537055,110880.0,110870.0,1.19181385]
[1757095668086,0.37537055,110880.0,110870.0,1.26255629]
[1757095668492,0.39665055,110880.0,110870.0,0.92236599]
[1757095668797,0.40937055,110880.0,110870.0,0.45769244]
[1757095669189,0.40937055,110880.0,110870.0,0.46069244]
[1757095669689,0.40937055,110880.0,110870.0,1.02194629]
[1757095669889,0.39665055,110880.0,110870.0,1.02194629]
[1757095670494,0.40937055,110880.0,110870.0,0.93175599]
[1757095670689,0.40937055,110880.0,110870.0,1.00918629]
[1757095671097,0.40937055,110880.0,110870.0,0.91899599]
[1757095671398,0.40937055,110880.0,110870.0,1.00918629]
[1757095672099,0.40937055,110880.0,110870.0,0.91899599]
[1757095672596,0.40937055,110880.0,110870.0,0.46069244]
[1757095672894,0.65937055,110880.0,110870.0,0.46069244]
[1757095674301,0.65937055,110880.0,110870.0,0.43754244]
[1757095674994,0.65937055,110880.0,110870.0,0.46069244]
[1757095675500,0.65937055,110880.0,110870.0,0.45969244]
[1757095676092,0.65937055,110880.0,110870.0,0.43654244]
[1757095676291,0.65937055,110880.0,110870.0,0.43254244]
[1757095676504,0.65337055,110880.0,110870.0,0.43554244]
[1757095677302,0.65337055,110880.0,110870.0,0.004]
[1757095677701,0.65337055,110880.0,110870.0,0.02715]
[1757095678607,0.65337055,110880.0,110870.0,0.004]
[1757095679509,0.65337055,110880.0,110870.0,0.001]
[1757095679708,0.65337055,110880.0,110870.0,0.002]
[1757095680501,0.01272,110860.0,110850.0,0.42559481]
[1757095680708,0.88636,110860.0,110850.0,0.3608]
[1757095683108,0.88636,110860.0,110850.0,0.3618]
[1757095685609,1.59466355,110860.0,110850.0,0.001]
[1757095685814,1.95546355,110860.0,110850.0,0.001]
[1757095686813,1.96464987,110860.0,110850.0,0.001]
[1757095687405,0.034,110840.0,110830.0,0.42559481]
[1757095687715,0.8858,110840.0,110830.0,0.49874481]
[1757095688311,0.034,110840.0,110830.0,0.49874481]
[1757095688511,0.8862,110840.0,110830.0,0.49874481]
[1757095689315,0.034,110840.0,110830.0,0.49874481]
[1757095689515,0.88624,110840.0,110830.0,0.49874481]
[1757095689711,0.88624,110840.0,110830.0,0.49974481]
[1757095690014,0.88624,110840.0,110830.0,0.50174481]
[1757095690414,0.034,110840.0,110830.0,1.31038126]
[1757095690606,0.02128,110840.0,110830.0,1.31038126]
[1757095690811,0.02128,110840.0,110830.0,1.32682989]
[1757095691011,0.41814,110850.0,110830.0,1.32682989]
[1757095691205,0.43942,110850.0,110840.0,0.90708853]
[1757095691409,0.43932,110850.0,110840.0,0.81815747]
[1757095692019,0.43932,110850.0,110840.0,0.44878498]
[1757095692318,0.43932,110850.0,110840.0,0.81815747]
[1757095692518,0.43932,110850.0,110840.0,0.75332249]
[1757095693617,0.43932,110850.0,110830.0,0.75632249]
[1757095693618,0.034,110840.0,110830.0,0.75632249]
[1757095693813,0.034,110840.0,110830.0,0.76643249]
[1757095694119,0.034,110840.0,110830.0,1.07926747]
[1757095694120,0.85148,110840.0,110830.0,1.07926747]
[1757095694317,0.85148,110840.0,110830.0,1.01443249]
[1757095694719,0.85148,110840.0,110830.0,1.01343249]
[1757095694915,0.02128,110840.0,110830.0,1.01543249]
[1757095695118,0.02128,110840.0,110830.0,1.08026747]
[1757095695815,0.02128,110840.0,110830.0,1.01543249]
[1757095696216,0.02128,110840.0,110830.0,1.01743249]
[1757095697422,0.02128,110840.0,110830.0,1.01943249]
[1757095699218,0.02128,110840.0,110830.0,1.08426747]
[1757095699422,0.03424,110840.0,110830.0,1.01943249]
[1757095699929,0.86414,110850.0,110830.0,1.17449037]
[1757095700115,0.88658,110850.0,110840.0,0.75225249]
[1757095700314,0.88648,110850.0,110840.0,0.75225249]
[1757095701923,0.88648,110850.0,110840.0,0.75425249]
[1757095703026,0.88648,110850.0,110840.0,0.75525249]
[1757095703325,0.88412,110850.0,110840.0,0.75525249]
[1757095704223,0.03516,110850.0,110840.0,0.75525249]
[1757095704519,0.88404,110850.0,110840.0,0.75525249]
[1757095704725,0.03516,110850.0,110840.0,0.82008747]
[1757095704922,0.88376,110850.0,110840.0,0.82008747]
[1757095705123,0.87088,110850.0,110840.0,0.83317747]
[1757095705316,0.87084,110850.0,110840.0,0.83317747]
[1757095705724,0.8838,110850.0,110840.0,0.83317747]
[1757095706028,0.8838,110850.0,110840.0,0.82008747]
[1757095706227,0.8838,110850.0,110840.0,0.45071498]
[1757095706428,0.8838,110850.0,110840.0,0.82008747]
[1757095708731,0.8838,110850.0,110840.0,0.45071498]
[1757095708932,0.8838,110850.0,110840.0,0.82008747]
[1757095709526,0.0354,110850.0,110840.0,0.82008747]
[1757095709726,0.81724,110850.0,110840.0,0.82008747]
[1757095709926,0.88256,110850.0,110840.0,0.82008747]
[1757095714333,0.90348371,110850.0,110840.0,0.75525249]
[1757095715339,0.88256,110850.0,110840.0,0.75525249]
[1757095718543,0.90370942,110850.0,110840.0,0.75525249]
[1757095721240,0.05654942,110850.0,110840.0,0.75525249]
[1757095721448,0.01282,110860.0,110850.0,0.03075]
[1757095721449,0.86698,110860.0,110850.0,0.03075]
[1757095721743,0.88818074,110860.0,110850.0,1.22050158]
[1757095721943,0.90114074,110860.0,110850.0,1.22050158]
[1757095722142,0.90114074,110860.0,110850.0,0.76989036]
[1757095722340,0.90114074,110860.0,110850.0,0.38288]
[1757095722534,0.90114074,110860.0,110850.0,0.75225249]
[1757095722741,0.88818074,110860.0,110850.0,1.22050158]
[1757095723533,0.88818074,110860.0,110850.0,1.22150158]
[1757095723736,0.88846074,110860.0,110850.0,1.22150158]
[1757095724143,0.02244,110860.0,110850.0,1.22150158]
[1757095724344,0.86716,110860.0,110850.0,1.28933656]
[1757095724655,0.01282,110870.0,110850.0,1.64253705]
[1757095724950,0.0001,110870.0,110860.0,0.85256089]
[1757095725134,2.6239,110880.0,110870.0,0.03219]
[1757095725333,2.64508325,110880.0,110870.0,0.85255279]
[1757095726042,2.64492325,110880.0,110870.0,0.85255279]
[1757095726346,2.64492325,110880.0,110870.0,0.84244279]
[1757095726543,1.77932,110880.0,110870.0,0.75225249]
[1757095726942,2.62336,110880.0,110870.0,0.75225249]
[1757095727147,2.62328,110880.0,110870.0,0.75225249]
[1757095727540,2.62328,110880.0,110870.0,1.13126418]
[1757095727937,2.62328,110880.0,110870.0,1.13326418]
[1757095728453,2.62328,110880.0,110870.0,1.12315418]
[1757095730152,0.84344,110880.0,110870.0,1.22345088]
[1757095730649,0.84344,110880.0,110870.0,1.29639388]
[1757095731247,0.84336,110880.0,110870.0,1.29639048]
[1757095731643,0.85618,110890.0,110870.0,1.29639048]
[1757095731843,1.00878055,110890.0,110880.0,1.09907418]
[1757095732043,1.00868055,110890.0,110880.0,1.09907418]
[1757095732447,1.00868055,110890.0,110880.0,1.11216418]
[1757095732644,1.00868055,110890.0,110880.0,1.12102915]
[1757095733054,1.00868055,110890.0,110880.0,1.10793915]
[1757095733354,0.16556055,110890.0,110880.0,1.10793915]
[1757095733654,1.00876055,110890.0,110880.0,1.12102915]
[1757095734549,1.00876055,110890.0,110880.0,1.10793915]
[1757095735646,1.00876055,110890.0,110880.0,1.11216418]
[1757095735846,1.00876055,110890.0,110880.0,1.09907418]
[1757095737252,1.37789764,110890.0,110880.0,1.12166418]
[1757095737568,1.62789764,110890.0,110880.0,0.3608]
[1757095738054,1.62789764,110890.0,110880.0,0.72993709]
[1757095738462,1.62789764,110890.0,110880.0,0.3608]
[1757095739658,0.01306,110880.0,110870.0,0.82547009]
[1757095739951,0.40353709,110880.0,110870.0,0.82547009]
[1757095740151,0.42479764,110880.0,110870.0,0.82547009]
[1757095740367,0.42479764,110880.0,110870.0,0.80288009]
[1757095740954,0.42479764,110880.0,110870.0,0.82547009]
[1757095741759,0.42479764,110880.0,110870.0,0.82647009]
[1757095742149,0.42479764,110880.0,110870.0,0.82747009]
[1757095743252,0.05566055,110880.0,110870.0,0.82747009]
[1757095743448,0.42479764,110880.0,110870.0,0.82747009]
[1757095744546,0.42479764,110880.0,110870.0,0.458333]
[1757095744752,0.05566055,110880.0,110870.0,0.82747009]
[1757095744958,0.42479764,110880.0,110870.0,0.82747009]
[1757095746046,0.42479764,110880.0,110870.0,0.80488009]
[1757095747554,0.79393473,110880.0,110870.0,0.435743]
[1757095747866,0.79393473,110880.0,110870.0,0.80488009]
[1757095748360,0.79393473,110880.0,110870.0,0.44408009]
[1757095748858,1.04393473,110880.0,110870.0,0.073943]
[1757095749059,1.40473473,110880.0,110870.0,0.001]
[1757095749365,1.40473473,110880.0,110860.0,0.3608]
[1757095749366,0.0344,110870.0,110860.0,0.3608]
[1757095749562,1.26571764,110870.0,110860.0,0.72993709]
[1757095750463,1.26571764,110870.0,110860.0,0.75252709]
[1757095750658,1.26571764,110870.0,110860.0,0.38339]
[1757095750858,1.26571764,110870.0,110860.0,0.75252709]
[1757095751060,1.26571764,110870.0,110860.0,0.75352709]
[1757095752359,1.26571764,110870.0,110860.0,0.75452709]
[1757095752561,1.26571764,110870.0,110860.0,0.3628]
[1757095753865,1.26571764,110870.0,110860.0,0.3618]
[1757095755062,1.51571764,110870.0,110860.0,0.001]
[1757095756269,1.88485473,110870.0,110860.0,0.001]
[1757095756662,0.01361,110860.0,110850.0,0.72993709]
[1757095756862,0.77309418,110860.0,110850.0,0.72993709]
[1757095757062,0.79435473,110860.0,110850.0,0.72993709]
[1757095757562,0.42521764,110860.0,110850.0,0.72993709]
[1757095758270,0.42521764,110860.0,110850.0,0.73093709]
[1757095758467,0.79435473,110860.0,110850.0,0.3618]
[1757095759163,0.79435473,110860.0,110850.0,0.001]
[1757095759772,0.8032115,110860.0,110850.0,0.001]
[1757095760573,0.8032115,110860.0,110850.0,0.002]
[1757095761372,0.8032115,110860.0,110850.0,0.001]
[1757095762568,0.03482,110850.0,110840.0,0.75104709]
[1757095762769,1.26581764,110850.0,110840.0,0.75104709]
[1757095762965,1.26581764,110850.0,110840.0,0.38191]
[1757095763173,1.26581764,110850.0,110840.0,0.75104709]
[1757095763672,1.26581764,110850.0,110840.0,0.38191]
[1757095763871,1.26581764,110850.0,110840.0,0.75104709]
[1757095764473,1.24455709,110850.0,110840.0,0.38191]
[1757095764677,1.24455709,110850.0,110840.0,0.75104709]
[1757095764866,1.24455709,110850.0,110840.0,0.75204709]
[1757095765062,1.24455709,110850.0,110840.0,0.75304709]
[1757095765671,0.87542,110850.0,110840.0,0.75304709]
[1757095765870,1.24455709,110850.0,110840.0,0.75304709]
[1757095769678,0.87542,110850.0,110840.0,0.75304709]
[1757095769880,1.24455709,110850.0,110840.0,0.75304709]
[1757095770776,1.24455709,110850.0,110840.0,0.38391]
[1757095770978,0.03482,110850.0,110840.0,0.75304709]
[1757095771173,0.87398,110850.0,110840.0,1.12218418]
[1757095771379,0.03482,110850.0,110840.0,1.12218418]
[1757095771674,0.8739,110850.0,110840.0,1.12218418]
[1757095772276,0.8739,110850.0,110840.0,1.18701916]
[1757095773272,0.8739,110850.0,110840.0,0.44874498]
[1757095773473,0.8739,110850.0,110840.0,1.18701916]
[1757095774978,1.24303709,110850.0,110840.0,1.18701916]
[1757095775174,1.24303709,110850.0,110840.0,0.44874498]
[1757095775374,1.24303709,110850.0,110840.0,1.18701916]
[1757095776583,1.24303709,110850.0,110840.0,0.44874498]
[1757095777083,1.24303709,110850.0,110840.0,0.75304709]
[1757095777383,1.24303709,110850.0,110840.0,0.81788207]
[1757095778384,1.24303709,110850.0,110840.0,0.44874498]
[1757095778584,1.24303709,110850.0,110840.0,0.81788207]
[1757095779483,0.8739,110850.0,110840.0,0.81788207]
[1757095779686,1.24303709,110850.0,110840.0,0.81788207]
[1757095780382,1.24303709,110850.0,110840.0,1.18701916]
[1757095780684,0.8739,110850.0,110840.0,1.22701916]
[1757095780982,0.8739,110850.0,110840.0,0.85788207]
[1757095781185,1.24303709,110850.0,110840.0,0.48874498]
[1757095781385,1.24303709,110850.0,110840.0,1.22701916]
[1757095784788,0.8739,110850.0,110840.0,1.22701916]
[1757095785590,1.24303709,110850.0,110840.0,1.22701916]
[1757095786389,1.24303709,110850.0,110840.0,0.48874498]
[1757095786589,1.24303709,110850.0,110840.0,1.22701916]
[1757095787288,1.24303709,110850.0,110840.0,0.85788207]
[1757095788498,1.24303709,110850.0,110840.0,0.48874498]
[1757095788795,1.24303709,110850.0,110840.0,1.22701916]
[1757095789492,0.8739,110850.0,110840.0,0.85813392]
[1757095792989,1.24328894,110850.0,110840.0,0.46763498]
[1757095793489,1.49328894,110850.0,110840.0,0.46763498]
[1757095793691,1.88403778,110850.0,110840.0,0.002]
[1757095793992,0.67556884,110850.0,110840.0,0.002]
[1757095794196,1.51392884,110850.0,110840.0,0.002]
[1757095795190,0.67556884,110850.0,110840.0,0.002]
[1757095795389,1.51380884,110850.0,110840.0,0.002]
[1757095795590,0.0561799,110850.0,110840.0,0.75507894]
[1757095795794,0.87274,110850.0,110840.0,0.75507894]
[1757095795992,0.87274,110850.0,110840.0,0.75407894]
[1757095797090,0.87274,110850.0,110840.0,0.75307894]
[1757095797290,0.87274,110850.0,110840.0,0.75407894]
[1757095797595,0.87274,110850.0,110840.0,0.38469]
[1757095797894,0.89454364,110850.0,110840.0,0.38469]
[1757095798088,0.89454364,110850.0,110840.0,0.38569]
[1757095798489,0.05662364,110850.0,110840.0,0.38569]
[1757095798690,0.87273,110860.0,110850.0,0.02289]
[1757095798897,1.26382392,110860.0,110850.0,0.38369]
[1757095800190,1.26382392,110860.0,110850.0,0.3608]
[1757095800884,1.26382392,110860.0,110850.0,0.38369]
[1757095801394,1.27264756,110860.0,110850.0,0.38369]
[1757095801987,0.90325862,110860.0,110850.0,0.38369]
[1757095802391,1.27264756,110860.0,110850.0,0.38369]
[1757095803096,1.27264756,110860.0,110850.0,0.38469]
[1757095803399,1.25084258,110860.0,110850.0,0.38569]
[1757095804399,1.27264305,110860.0,110850.0,0.38569]
[1757095804698,0.89335047,110860.0,110850.0,0.38569]
[1757095806098,0.90236279,110860.0,110850.0,0.38569]
[1757095806600,0.90236246,110860.0,110850.0,0.38569]
[1757095807799,1.2717514,110860.0,110850.0,0.38569]
[1757095808187,1.2717514,110860.0,110850.0,0.3628]
[1757095808387,0.90236246,110860.0,110850.0,0.38569]
[1757095808593,1.2717514,110860.0,110850.0,0.38569]
[1757095809095,0.90236246,110860.0,110850.0,0.38569]
[1757095809296,1.2717514,110860.0,110850.0,0.38569]
[1757095809797,1.2717514,110860.0,110850.0,0.38469]
[1757095811200,0.90236246,110860.0,110850.0,0.38469]
[1757095811394,0.89291014,110860.0,110850.0,0.75507894]
[1757095812298,0.9021721,110860.0,110850.0,0.75507894]
[1757095812890,1.26229908,110860.0,110850.0,0.38569]
[1757095813701,1.27148948,110860.0,110850.0,0.38569]
[1757095814298,1.26229908,110860.0,110850.0,0.38569]
[1757095817597,1.27146867,110860.0,110850.0,0.38569]
[1757095818401,0.90207973,110860.0,110850.0,0.38569]
[1757095818600,1.27146867,110860.0,110850.0,0.38569]
[1757095819804,0.43566867,110860.0,110850.0,0.38569]
[1757095820002,1.27142867,110860.0,110850.0,0.38569]
[1757095821505,2.25161761,110860.0,110850.0,0.002]
[1757095822102,2.25161761,110860.0,110850.0,0.001]
[1757095822304,1.88222867,110860.0,110850.0,0.002]
[1757095823506,1.88222867,110860.0,110850.0,0.001]
[1757095824201,0.03516,110850.0,110840.0,0.38384]
[1757095824506,0.42634908,110850.0,110840.0,0.38384]
[1757095824903,0.40454894,110850.0,110840.0,0.38384]
[1757095825206,0.42652212,110850.0,110840.0,0.38384]
[1757095825507,1.26304212,110850.0,110840.0,0.38384]
[1757095825709,1.26304552,110850.0,110840.0,0.38484]
[1757095826407,1.2630445,110850.0,110840.0,0.38484]
[1757095827207,1.24106894,110850.0,110840.0,0.38484]
[1757095827612,1.24106894,110850.0,110840.0,0.38584]
[1757095830212,0.40454894,110850.0,110840.0,0.38584]
[1757095830419,1.24002894,110850.0,110840.0,0.38584]
[1757095832321,0.87064,110850.0,110840.0,0.38584]
[1757095832529,1.24014894,110850.0,110840.0,0.38584]
[1757095832819,0.87076,110850.0,110840.0,0.75522894]
[1757095833121,1.24014894,110850.0,110840.0,0.38584]
[1757095836121,0.0001,110860.0,110850.0,0.0357]
[1757095836313,0.0001,110870.0,110860.0,0.03358]
[1757095836518,0.83538,110880.0,110860.0,0.86307988]
[1757095836718,0.89251069,110880.0,110870.0,0.75322894]
[1757095836924,0.89241069,110880.0,110870.0,0.75322894]
[1757095837624,0.89241069,110880.0,110870.0,0.4740304]
[1757095837816,0.89241069,110880.0,110870.0,0.75322894]
[1757095841023,0.05713069,110880.0,110870.0,0.84341924]
[1757095841225,0.89241069,110880.0,110870.0,0.85280924]
[1757095841920,0.89241069,110880.0,110870.0,0.92329211]
[1757095842429,0.89241069,110880.0,110870.0,0.83310181]
[1757095843922,0.89241069,110880.0,110870.0,0.92329221]
[1757095850130,0.05713069,110880.0,110870.0,0.92329221]
[1757095850324,0.89117069,110880.0,110870.0,0.92329221]
[1757095850832,0.05713069,110880.0,110870.0,0.92329221]
[1757095851025,0.89117069,110880.0,110870.0,0.92329221]
[1757095851227,0.05713069,110880.0,110870.0,0.92329221]
[1757095851425,0.05713069,110880.0,110870.0,0.92307563]
[1757095851426,0.67321069,110880.0,110870.0,0.92307563]
[1757095851621,0.05713069,110880.0,110870.0,0.92307563]
[1757095851834,0.89113069,110880.0,110870.0,0.92307563]
[1757095852932,0.89113069,110880.0,110870.0,0.91368563]
[1757095856229,1.87947541,110880.0,110870.0,0.45432287]
[1757095856434,1.51030305,110880.0,110870.0,0.82349523]
[1757095856830,1.14109069,110880.0,110870.0,0.82349523]
[1757095857137,1.51026305,110880.0,110870.0,0.82349523]
[1757095862127,1.51026305,110880.0,110870.0,0.45432287]
[1757095862328,1.87943541,110880.0,110870.0,0.43128287]
[1757095864136,1.87943541,110880.0,110870.0,0.3608]
[1757095865033,0.01372,110870.0,110860.0,0.72997236]
[1757095865239,0.40419236,110870.0,110860.0,0.72997236]
[1757095865433,0.42617628,110870.0,110860.0,0.3608]
[1757095865639,0.42617628,110870.0,110860.0,0.72997236]
[1757095865937,0.42617628,110870.0,110860.0,0.3608]
[1757095867238,0.42617628,110870.0,110850.0,0.3608]
[1757095867239,0.03502,110860.0,110850.0,0.3608]
[1757095867441,1.23815236,110860.0,110850.0,0.3708]
[1757095867738,1.23815236,110860.0,110850.0,0.39258]
[1757095868431,1.23815236,110860.0,110850.0,0.76175236]
[1757095868833,1.24727114,110860.0,110850.0,0.76175236]
[1757095869141,1.24727114,110860.0,110850.0,0.76275236]
[1757095872239,1.24727114,110860.0,110850.0,0.39358]
[1757095872543,1.24727114,110860.0,110850.0,0.76275236]
[1757095875647,1.24727114,110860.0,110850.0,0.39358]
[1757095875846,1.24727114,110860.0,110850.0,0.76275236]
[1757095877446,1.6164435,110860.0,110850.0,0.76275236]
[1757095877648,0.86902,110860.0,110850.0,0.76275236]
[1757095877848,1.23819236,110860.0,110850.0,0.76275236]
[1757095879864,1.24734264,110860.0,110850.0,0.76275236]
[1757095881149,0.03502,110860.0,110850.0,0.76275236]
[1757095881350,1.23819236,110860.0,110850.0,0.76275236]
[1757095883742,1.24734355,110860.0,110850.0,0.76275236]
[1757095885057,1.24734355,110860.0,110850.0,0.39358]
[1757095885353,1.61651591,110860.0,110850.0,0.76275236]
[1757095885654,1.24734355,110860.0,110850.0,0.76275236]
[1757095885849,1.61651591,110860.0,110850.0,0.74097236]
[1757095887055,1.61651591,110860.0,110850.0,0.3718]
[1757095887251,1.61651591,110860.0,110850.0,0.74097236]
[1757095887857,1.61651591,110860.0,110850.0,0.39414]
[1757095890155,1.61651591,110860.0,110850.0,0.76331236]
[1757095890658,1.61651591,110860.0,110850.0,0.3718]
[1757095892459,1.61651591,110860.0,110850.0,0.39414]
[1757095894461,1.63850685,110860.0,110850.0,0.39414]
[1757095895562,1.63850685,110860.0,110850.0,0.3718]
[1757095895864,1.63850685,110860.0,110850.0,0.39414]
[1757095899753,1.63850685,110860.0,110850.0,0.38414]
[1757095900963,0.06616213,110860.0,110850.0,0.38414]
[1757095901263,1.63830685,110860.0,110850.0,0.75331236]
[1757095905062,1.63830685,110860.0,110850.0,0.38414]
[1757095905251,1.63830685,110860.0,110850.0,0.75331236]
[1757095905758,1.62915566,110860.0,110850.0,0.75331236]
[1757095905961,0.05701094,110860.0,110850.0,0.75331236]
[1757095906158,0.58636,110860.0,110850.0,1.47210132]
[1757095906363,0.38299236,110870.0,110850.0,1.47210132]
[1757095906664,0.42814766,110870.0,110860.0,0.75250236]
[1757095906866,1.26176766,110870.0,110860.0,0.75250236]
[1757095907568,1.26172766,110870.0,110860.0,0.75250236]
[1757095908870,0.8925553,110870.0,110860.0,0.75250236]
[1757095909072,1.26172766,110870.0,110860.0,0.75250236]
[1757095910662,1.26172766,110870.0,110860.0,0.75350236]
[1757095910965,0.42804766,110870.0,110860.0,0.75350236]
[1757095911164,0.0588753,110870.0,110860.0,0.75350236]
[1757095911367,1.26164766,110870.0,110860.0,0.75350236]
[1757095913475,0.8924753,110870.0,110860.0,0.75361152]
[1757095914271,0.87048,110870.0,110860.0,0.75361152]
[1757095914473,0.89245964,110870.0,110860.0,0.75361152]
[1757095917575,0.87048,110870.0,110860.0,0.75361152]
[1757095919075,0.87048,110870.0,110860.0,0.38433]
[1757095920477,0.03688,110870.0,110860.0,0.38433]
[1757095920678,0.87028,110870.0,110860.0,0.38433]
[1757095921473,0.87028,110870.0,110860.0,0.75361152]
[1757095922478,0.87028,110870.0,110860.0,0.38433]
[1757095924489,0.89225817,110870.0,110860.0,0.38433]
[1757095924882,1.26153969,110870.0,110860.0,0.38433]
[1757095925183,1.51153969,110870.0,110860.0,0.001]
[1757095925390,1.51153969,110870.0,110860.0,0.02353]
[1757095925589,1.51153969,110870.0,110860.0,0.38433]
[1757095928592,1.51153969,110870.0,110860.0,0.38333]
[1757095929387,1.51153969,110870.0,110860.0,0.38433]
[1757095929591,1.51153969,110870.0,110860.0,0.3618]
[1757095929784,1.51153969,110870.0,110860.0,0.001]
[1757095931992,1.51253969,110870.0,110860.0,0.001]
[1757095932388,1.51253969,110870.0,110850.0,0.3608]
[1757095932593,0.40631152,110860.0,110850.0,0.38333]
[1757095932892,0.42828969,110860.0,110850.0,0.38333]
[1757095933788,0.42828969,110860.0,110850.0,0.3608]
[1757095934182,0.42828969,110860.0,110850.0,0.38433]
[1757095934788,0.87015,110860.0,110850.0,1.01624152]
[1757095934989,0.85628,110860.0,110850.0,1.01624152]